Cogmind - Beta 17.1 @@@ ROGUE MODE // 2026.09.07 @ 15:12:23 Player: H3-MLN Result: Escaped singularity! Performance ------------- Evolutions (9) 4500 Regions Visited (27) 5400 Robots Destroyed (114) 570 Value Destroyed (3483) 3483 Prototype IDs (369) 7380 Alien Tech Used (7) 1400 Bonus (41103) 41103 TOTAL SCORE: 63836 Bonus ------- High Alert Combat Kills 18 Follower Combat Kills 90 Registered with UFD 300 Met Optimus in HQ 500 Met Zhirov 300 MAIN.C Attacked Warlord 500 Met Optimus at Protoforge 1000 Destroyed MAIN.C Guards 500 Met MAIN.C 5000 Destroyed MAIN.C Shell 5000 Destroyed MAIN.C 10000 Destroyed Architect 15000 Win 3000 Friendly Fire -105 Cogmind --------- Core Integrity 1166/1600 Matter 290/300 Energy 99/100 System Corruption 1% Temperature Cool (0) Movement Core (50) Location Near Former Tau Ceti IV Parts ------- > --- POWER (2) -------- (None) > --- PROPULSION (9) --- (None) > --- UTILITY (8) ------ (None) > --- WEAPON (6) ------- (None) > --- INVENTORY (5) ---- Experimental Matter Compressor (500) Improved Utility Shielding Centrium Heavy Armor Plating AEGIS Remote Shield Peak State ------------ > --- POWER ------------ Quantum Reactor Light Quantum Reactor > --- PROPULSION ------- Experimental Biomechanical Wings Experimental Biomechanical Wings Experimental Biomechanical Wings Experimental Biomechanical Wings Experimental Surge Thruster Experimental Surge Thruster Concept Fieldthrust Drive Concept Fieldthrust Drive Concept Fieldthrust Drive > --- UTILITY ---------- 2N-1CE's Frost Array Concept Antigrav Storage Unit Enhanced Optical Array Experimental Sensor Array Experimental Signal Interpreter Concept Core Analysis Suite Concept Cloak Mesh Crosscalibrator > --- WEAPON ----------- BFG-9k Vortex Edition > --- INVENTORY -------- Micro Antimatter Reactor Quantum Reactor Advanced Heavy Siege Treads Experimental Energy Well Concept Chromion Battery Concept Dimensional Manipulator Deep Structural Scanner Concept Core Analysis Suite Energy Filter Quantum Capacitor Concept Cloak Mesh Experimental Weapon Shielding High-powered Transdimensional Reconstructor LU-1G1's Laser Shovel CPS Tube Plasma Lance Experimental Jetlance Experimental Jetlance [Rating: 293] Favorites ----------- Power Light Nuclear Core Engine Ion Engine Power Core Light Nuclear Core Reactor Quantum Reactor Propulsion Improved VTOL Module Treads Light Treads Leg Aluminum Leg Wheel Compact Wheel Flight Unit Improved VTOL Module Utility Transport Network Coupler Device Experimental Sensor Array Storage Huge Storage Unit Processor Transport Network Coupler Protection Hardened Medium Armor Plating Weapon Assault Rifle Energy Gun Heavy EM Shotgun Energy Cannon BFG-9k Vortex Edition Ballistic Gun Assault Rifle Ballistic Cannon Heavy Assault Cannon Launcher Proton Missile Launcher Special Weapon LU-1G1's Laser Shovel Slashing Weapon Phasing Sabre Piercing Weapon Plasma Lance Special Melee Weapon Datajack Build | -11 -10 -10 -10 -9 -8 -8 -8 -8 -6 -5 -5 -5 -5 -4 -4 -4 -4 -4 -3 -3 -3 -2 -2 -2 -1 -1 -1 ------- Run | Yrd Mat Min Exi Min Mat Sto Rec Scr Fac Fac Upp Upp Zhi Pro Fac Upp Upp War Pro Res Tes Res Qua Frg Acc Com Ac0 Slots Evolved 18 | . . . . . 4 . . . 4 2 . . . . 2 . . . . 2 . 2 . . 2 . . Power 1 | . . . . . . . . . 1 . . . . . . . . . . . . . . . . . . Propulsion 7 | . . . . . 2 . . . 2 1 . . . . 1 . . . . . . 1 . . . . . Utility 6 | . . . . . 2 . . . 1 1 . . . . 1 . . . . . . 1 . . . . . Weapon 4 | . . . . . . . . . . . . . . . . . . . . 2 . . . . 2 . . Parts Attached 177 | 6 5 1 . 1 37 7 . 15 7 5 . 2 2 . 1 . . 10 . 7 4 2 2 37 10 16 . Power 24 | 1 . . . . 4 2 . 2 2 . . . . . . . . 1 . 1 . . . 6 2 3 . Engine 9 | 1 . . . . 4 2 . 1 1 . . . . . . . . . . . . . . . . . . Core 2 | . . . . . . . . 1 1 . . . . . . . . . . . . . . . . . . Reactor 13 | . . . . . . . . . . . . . . . . . . 1 . 1 . . . 6 2 3 . Propulsion 55 | 2 1 . . 1 12 4 . 5 1 2 . . . . . . . 2 . 2 1 1 . 14 4 3 . Treads 15 | 2 . . . . 5 4 . 1 . . . . . . . . . . . . . . . . . 3 . Leg 1 | . . . . . 1 . . . . . . . . . . . . . . . . . . . . . . Wheel 7 | . 1 . . 1 5 . . . . . . . . . . . . . . . . . . . . . . Hover . | . . . . . . . . . . . . . . . . . . . . . . . . . . . . Flight 32 | . . . . . 1 . . 4 1 2 . . . . . . . 2 . 2 1 1 . 14 4 . . Utility 57 | 1 2 . . . 10 . . 6 3 2 . . 2 . 1 . . 3 . 3 1 1 1 11 3 7 . Device 18 | . . . . . 1 . . 3 2 . . . . . 1 . . 1 . . 1 . . 3 2 4 . Storage 11 | 1 1 . . . 1 . . 1 . 1 . . 1 . . . . . . 2 . . . 3 . . . Processor 13 | . 1 . . . 1 . . 1 1 1 . . . . . . . 2 . . . . . 4 1 1 . Hackware . | . . . . . . . . . . . . . . . . . . . . . . . . . . . . Protection 15 | . . . . . 7 . . 1 . . . . 1 . . . . . . 1 . 1 1 1 . 2 . Artifact . | . . . . . . . . . . . . . . . . . . . . . . . . . . . . Weapon 41 | 2 2 1 . . 11 1 . 2 1 1 . 2 . . . . . 4 . 1 2 . 1 6 1 3 . Energy Gun 7 | 1 1 . . . 4 . . . . . . . . . . . . . . . 1 . . . . . . Energy Cannon 4 | . . . . . 1 . . . . . . 1 . . . . . . . . 1 . . . 1 . . Ballistic Gun 6 | 1 . 1 . . 2 . . . . . . 1 . . . . . . . . . . . 1 . . . Ballistic Cannon 1 | . . . . . 1 . . . . . . . . . . . . . . . . . . . . . . Launcher 5 | . 1 . . . 2 1 . . 1 . . . . . . . . . . . . . . . . . . Special Weapon 6 | . . . . . . . . 1 . . . . . . . . . 3 . 1 . . . . . 1 . Impact Weapon . | . . . . . . . . . . . . . . . . . . . . . . . . . . . . Slashing Weapon 9 | . . . . . 1 . . . . 1 . . . . . . . 1 . . . . 1 4 . 1 . Piercing Weapon 2 | . . . . . . . . . . . . . . . . . . . . . . . . 1 . 1 . Special Melee Weapon 1 | . . . . . . . . 1 . . . . . . . . . . . . . . . . . . . Unidentified Prototypes 32 | . . . . . 3 1 . 1 . 1 . . 3 . . . . 6 . 1 3 . 4 7 1 1 . Parts Lost 48 | . 1 1 . 2 15 3 . . . . . . . . . . . . . . 2 . . 19 2 2 1 Power 11 | . . . . . 3 1 . . . . . . . . . . . . . . . . . 6 . 1 . Propulsion 20 | . . . . 1 5 2 . . . . . . . . . . . . . . 1 . . 9 2 . . Utility 9 | . . . . . 4 . . . . . . . . . . . . . . . . . . 3 . 1 1 Weapon 8 | . 1 1 . 1 3 . . . . . . . . . . . . . . . 1 . . 1 . . . Highest Loss Streak 8 | . 1 1 . 1 4 2 . . . . . . . . . . . . . . 2 . . 8 1 2 1 To Critical Strikes 1 | . . . . 1 . . . . . . . . . . . . . . . . . . . . . . . Average Backups 16 | 1 6 14 15 17 22 24 23 19 12 13 13 14 14 14 13 13 14 11 10 9 14 13 14 15 18 17 14 Power . | . 1 1 1 1 1 2 2 1 . . . . . . . . . . . . . . . . 1 1 1 Propulsion 4 | . 2 7 8 8 8 8 7 4 . . 2 2 2 1 . . . . . . 1 . 1 2 2 1 2 Utility 6 | . . 3 4 5 5 8 8 8 4 5 5 5 5 6 6 7 7 5 5 5 6 6 6 5 8 9 9 Weapon 3 | . 2 2 2 1 7 6 6 2 2 2 2 3 2 2 2 3 4 2 1 2 2 2 2 2 3 2 1 Tool/Special . | . . . . . . . . . . . . . . . . . . . . . . . . . . . . Unused Backups 48 | . . . . 1 3 7 . 5 . 3 1 . 1 1 . . . 2 . . . 2 3 3 1 2 13 Power 2 | . . . . . . 1 . . . . . . . . . . . . . . . . . . . . 1 Propulsion 10 | . . . . 1 1 5 . . . . . . . . . . . . . . . . 1 2 . . . Utility 25 | . . . . . 1 . . 4 . 1 . . 1 . . . . 2 . . . 2 1 . . 2 11 Weapon 7 | . . . . . 1 1 . 1 . 1 1 . . . . . . . . . . . . . 1 . 1 Tool/Special 4 | . . . . . . . . . . 1 . . . 1 . . . . . . . . 1 1 . . . Average Slot Usage (%) 87 | . 90 100 100 99 93 88 90 88 89 96 89 88 88 88 89 89 89 91 94 89 73 73 77 68 77 78 32 Engine 5 | . 14 14 14 14 8 9 9 6 1 . . . . . . . . . . . . . . . . . . Core 2 | . . . . . . . . 2 10 11 11 11 11 11 10 10 10 10 10 7 1 4 4 . . . . Reactor 1 | . . . . . . . . . . . . . . . . . . . . . 4 4 4 5 7 6 2 Treads 12 | . 24 14 14 13 21 33 36 23 . . . . . . . . . . . . . . . . . . 4 Wheel 3 | . 4 14 14 14 10 1 . . . . . . . . . . . . . . . . . . . . . Flight 17 | . . . . . . . . 10 39 39 35 35 35 35 36 36 36 36 36 33 30 29 26 25 32 35 10 Device 7 | . . . . . 3 . . 2 18 16 16 16 16 16 15 19 15 15 15 16 18 16 15 9 15 15 6 Storage 7 | . 14 14 14 14 9 9 9 8 6 5 5 5 5 5 5 5 5 5 5 4 4 4 4 4 4 4 2 Processor 11 | . 5 14 14 14 9 18 18 16 6 10 11 11 11 11 10 10 10 10 10 9 9 8 8 14 12 8 4 Protection 4 | . . . . . 13 9 9 7 . . . . . . 4 . 5 5 5 1 . 3 5 2 . 1 2 Energy Gun 2 | . 12 5 . . 8 . . . . . . . . . . . . . . . . . . . . . . Ballistic Gun 4 | . 14 22 28 26 5 . . . . . . . . . . . . . . . . . . . . . . Ballistic Cannon 1 | . . . . . . 8 3 5 . . . . . . . . . . . . . . . . . . . Slashing Weapon 1 | . . . . . 1 . . 2 3 1 1 . 2 4 5 1 . 2 5 3 . . 3 2 . . . Peak Build Rating 293 | 6 8 9 9 10 32 30 27 48 70 84 85 86 85 92 97 98 97 117 117 135 148 159 184 206 275 293 274 Average Rating 79 | 4 6 8 9 9 26 27 25 29 62 78 80 80 82 85 93 97 94 107 114 125 129 141 161 169 215 245 28 On Entrance 85 | . 6 8 9 9 9 28 25 27 48 69 74 80 80 85 80 97 92 94 114 114 117 119 153 163 202 222 274 Avg Prop Armor Cover (%) 12 | 32 12 12 12 11 16 19 . 45 2 1 . . . . . . . . . . 2 . . 5 2 . . Naked Turns 10 | . . . . . . . . . . . . . . . . . . . . . . . . . . . 10 Heaviest Build 125 | 14 89 89 89 90 109 108 108 108 40 40 39 44 38 41 41 43 43 51 45 52 62 67 69 81 71 125 . Greatest Support 180 | 40 40 16 16 16 80 80 80 80 39 47 47 38 38 47 43 52 52 56 47 53 65 67 73 74 72 180 3 Greatest Overweight (x) 10 | 3 5 5 5 8 10 10 1 7 2 . 1 1 . 1 . . . . . . 1 1 1 1 1 1 . Average Overweight (x) . | . 2 5 5 5 6 1 1 . . . . . . . . . . . . . . . . . . . . Largest Inventory Capacity 25 | 8 25 25 25 25 25 25 25 25 15 15 15 15 15 15 15 15 15 15 15 20 20 20 20 25 25 25 25 Average Capacity 20 | 7 12 25 25 25 25 25 25 20 15 15 15 15 15 15 15 15 15 15 15 15 20 20 20 21 25 25 6 Most Carried 25 | 3 14 18 18 21 25 25 25 25 15 15 15 15 15 15 15 15 15 15 15 20 20 20 20 25 25 25 25 Average Carried 18 | 1 6 14 18 19 23 24 24 19 13 14 14 14 14 14 14 14 14 14 15 14 19 18 19 20 24 24 6 Final Capacity 25 | 8 25 25 25 25 25 25 25 15 15 15 15 15 15 15 15 15 15 15 15 20 20 20 20 25 25 25 5 Final Carried 25 | 3 14 18 18 19 25 24 24 15 15 15 15 15 15 15 15 15 15 15 15 20 20 20 20 25 25 25 5 Class Distribution -------------------- 29% | Mutant 28% | Scavenger-Mutant 10% | Scout 4% | Sprinter 3% | Infiltrator-Ninja 3% | Scavenger-Sprinter 3% | Commander-Scout Dominant Class ---------------- Mutant | -10/Materials Mutant | -10/Mines Mutant | -10/Exiles Mutant | -9/Mines Scavenger-Mutant | -8/Materials Scavenger-Mutant | -8/Storage Scavenger-Mutant | -8/Recycling Scavenger-Mutant | -8/Scraptown Sprinter | -6/Factory Sprinter | -5/Factory Scout | -5/Upper Caves Scout | -5/Upper Caves Commander-Scout | -5/Zhirov Scout | -4/Proximity Caves Scout | -4/Factory Scout | -4/Upper Caves Scout | -4/Upper Caves Commander-Scout | -4/Warlord Scout | -3/Proximity Caves Infiltrator-Ninja | -3/Research Infiltrator-Scout | -3/Testing Infiltrator-Mutant | -2/Research Infiltrator-Ninja | -2/Quarantine Scavenger-Sprinter | -2/Protoforge Assassin | -1/Access Mutant | -1/Command Mutant | -1/Access_0 Resources | -11 -10 -10 -10 -9 -8 -8 -8 -8 -6 -5 -5 -5 -5 -4 -4 -4 -4 -4 -3 -3 -3 -2 -2 -2 -1 -1 -1 ----------- Run | Yrd Mat Min Exi Min Mat Sto Rec Scr Fac Fac Upp Upp Zhi Pro Fac Upp Upp War Pro Res Tes Res Qua Frg Acc Com Ac0 Matter Collected 6997 | 233 359 129 . 256 768 581 57 419 370 360 237 118 . 101 109 50 40 . 53 107 220 . 228 992 . 1175 35 Remotely . | . . . . . . . . . . . . . . . . . . . . . . . . . . . . Salvage Created 6567 | . 298 119 . 553 1462 779 . . 291 158 228 89 . 11 133 . . . . 107 . . 34 335 . 1760 210 Parts 291 | . 20 10 . 26 73 45 . . 11 . 4 5 . . 4 . . . . 3 . . 1 17 . 72 . Haulers Intercepted 11 | . 2 . . . 6 3 . . . . . . . . . . . . . . . . . . . . . Recyclers Shooed 11 | . 1 . . 2 3 4 . . . . . . . . . . . . . . 1 . . . . . . Parts Field Recycled . | . . . . . . . . . . . . . . . . . . . . . . . . . . . . Retrieved Matter . | . . . . . . . . . . . . . . . . . . . . . . . . . . . . Parts Self-Destructed 29 | . . . . . . . . 4 . . 6 6 . 8 . . 1 . 4 . . . . . . . . Prevented 1 | . . . . . . . . . . . . . . 1 . . . . . . . . . . . . . Parts Restored 7 | . . . . . . . . . . . . . . . . . . . . . . . . . 6 1 . Faulty 7 | . . . . . . . . . . . . . . . . . . . . . . . . . 6 1 . Kills | -11 -10 -10 -10 -9 -8 -8 -8 -8 -6 -5 -5 -5 -5 -4 -4 -4 -4 -4 -3 -3 -3 -2 -2 -2 -1 -1 -1 ------- Run | Yrd Mat Min Exi Min Mat Sto Rec Scr Fac Fac Upp Upp Zhi Pro Fac Upp Upp War Pro Res Tes Res Qua Frg Acc Com Ac0 Combat Hostiles Destroyed 71 | . 7 2 . 10 20 14 . . 3 . . 1 . 1 . . . . . . . . . 9 . 3 1 Melee 10 | . . . . . . . . . . . . . . 1 . . . . . . . . . 8 . 1 . Guns 27 | . 3 2 . 6 14 . . . . . . 1 . . . . . . . . . . . 1 . . . Cannons 15 | . . . . . 1 11 . . . . . . . . . . . . . . . . . . . 2 1 AOE 19 | . 4 . . 4 5 3 . . 3 . . . . . . . . . . . . . . . . . . Classes Destroyed 20 | . 3 1 . 2 8 2 . . . . 1 1 . 1 . . . . . . . . . 1 . . . Worker 5 | . . . . 1 2 1 . . . . . . . . . . . . . . . . . . . 1 . Builder 5 | . . . . . 3 1 . . . . . . . . 1 . . . . . . . . . . . . Tunneler 1 | . . 1 . . . . . . . . . . . . . . . . . . . . . . . . . Hauler 11 | . 2 . . . 6 3 . . . . . . . . . . . . . . . . . . . . . Recycler 13 | . . . . 3 1 4 . . 2 1 . . . . 1 . . . . 1 . . . . . . . Mechanic 2 | . . . . . . 1 . . 1 . . . . . . . . . . . . . . . . . . Operator 4 | . . . . . 2 . . . . . . . . . . . . . . . . . 1 . . 1 . Drone 4 | . . . . . . . . . . . . . . 1 . . . . . . . . . 3 . . . Watcher 2 | . . . . . . 1 . . . . . . . . . . . . . . . . . 1 . . . Swarmer 18 | . 3 . . 4 . 4 . . 3 . . . . . . . . . . . . . . 4 . . . Grunt 29 | . 4 2 . 6 13 4 . . . . . . . . . . . . . . . . . . . . . Brawler 1 | . . . . . 1 . . . . . . . . . . . . . . . . . . . . . . Duelist 1 | . . . . . 1 . . . . . . . . . . . . . . . . . . . . . . Sentry 8 | . . . . . 2 5 . . . . . . . . . . . . . . . . . . . 1 . Specialist 1 | . . . . . 1 . . . . . . . . . . . . . . . . . . . . . . Hunter 3 | . . . . . 1 1 . . . . . . . . . . . . . . . . . 1 . . . Heavy 1 | . . . . . 1 . . . . . . . . . . . . . . . . . . . . . . Striker 1 | . . . . . . . . . . . . . . . . . . . . . . . . 1 . . . Decomposer 2 | . . . . . . . . . . . 2 . . . . . . . . . . . . . . . . Samaritan 3 | . . . . . . . . . . . 3 . . . . . . . . . . . . . . . . Mutant 1 | . . . . . . . . . . . . 1 . . . . . . . . . . . . . . . Best Kill Streak 6 | . 3 3 . 6 4 4 . . 5 1 . 1 . 1 1 . . . . 1 . . 1 4 . 3 1 Combat Bots Only 5 | . 3 2 . 5 3 3 . . 3 . . 1 . 1 . . . . . . . . . 4 . 2 1 Max Kills in Single Turn 3 | . 3 1 . 3 3 1 . . 2 1 1 1 . 1 1 . . . . 1 . . 1 1 . 1 1 Gunslinging . | . . . . . . . . . . . . . . . . . . . . . . . . . . . . Exploded 3 | . 3 . . 3 1 1 . . 2 . . . . . . . . . . . . . . . . . . Melee 1 | . . . . . . . . . . . . . . 1 . . . . . . . . . 1 . 1 . Uniques/NPCs Destroyed 3 | . . . . . . . . . . . . . . . . . . . . . . . . . . 2 1 MAIN.C Shell (-1/Command) MAIN.C (-1/Command) Architect (-1/Access_0) Combat | -11 -10 -10 -10 -9 -8 -8 -8 -8 -6 -5 -5 -5 -5 -4 -4 -4 -4 -4 -3 -3 -3 -2 -2 -2 -1 -1 -1 -------- Run | Yrd Mat Min Exi Min Mat Sto Rec Scr Fac Fac Upp Upp Zhi Pro Fac Upp Upp War Pro Res Tes Res Qua Frg Acc Com Ac0 Hostile Shots Fired 659 | . 24 14 . 44 188 74 . . 6 5 . . . . . 6 1 . . 1 18 . 11 187 14 54 12 Missed 233 | . 10 . . 13 61 28 . . 2 2 . . . . . 3 . . . 1 7 . 9 75 6 10 6 Hits 426 | . 14 14 . 31 127 46 . . 4 3 . . . . . 3 1 . . . 11 . 2 112 8 44 6 Melee 16 | . . . . . 1 . . . . . . . . . . . . . . . . . . 15 . . . Projectile 410 | . 14 14 . 31 126 46 . . 4 3 . . . . . 3 1 . . . 11 . 2 97 8 44 6 AOE 8 | . . . . . 2 . . . . . . . . . . . . . . . . . . 5 1 . . Critical Strikes 32 | . . . . 2 5 4 . . . 1 . . . . . . . . . . 1 . . 16 1 2 . Actively Blocked 1 | . . . . . . . . . . . . . . . . . . . . . . . . 1 . . . Part Disruptions 5 | . . . . . . . . . . . . . . . . . . . . . 1 . . . . 3 1 Actively Blocked 2 | . . . . . . . . . . . . . . . . . . . . . . . . . . 2 . Damage Taken 10241 | . 228 173 . 319 2462 627 . . 58 41 . . . . 29 63 14 . . . 261 . 35 4281 221 1275 154 Core 1510 | . 46 28 . 63 318 27 . . . . . . . . . . . . . . 50 . . 732 43 123 80 Absorbed by Shields 167 | . . . . 48 56 . . . . . . . . . . . . . . . . . . 63 . . . Reduced by Siege Mode 61 | . . . . . . . . . . . . . . . . . . . . . . . . . . 61 . Redirected to Shielding 265 | . . . . . 20 . . . . . . . . . . . . . . . . . . 41 . 204 . Ignored by Resistances 426 | . . . . . . . . . . . . . . . . . . . . . . . . . . 426 . Regen/Repaired (Parts) 503 | . . . . . . . . . . . . . . . . . . 11 . . . . . 492 . . . Core Remaining (%) 75 | 100 . . . 45 . . . 37 100 . . . . 100 . . . . 100 . 96 . . 27 . . 72 Volleys Fired 297 | . 22 7 . 39 121 69 . . 2 . . 7 . 2 2 . . . . . 2 1 . 7 . 15 1 Largest 2 | . 2 2 . 2 2 1 . . 1 . . 1 . 1 1 . . . . . 1 1 . 1 . 1 1 Hottest 300 | . 60 60 . 40 70 50 . . 43 . . 105 . 105 43 . . . . . 80 60 . 32 . 300 300 Shots Fired 407 | . 40 14 . 75 170 69 . . 2 . . 7 . 2 2 . . . . . 2 1 . 7 . 15 1 Gun 283 | . 38 14 . 72 146 . . . . . . 5 . . . . . . . . 1 . . 7 . . . Cannon 85 | . . . . . 5 64 . . . . . 2 . 2 . . . . . . . . . . . 11 1 Launcher 33 | . 2 . . 3 19 5 . . 2 . . . . . 2 . . . . . . . . . . . . Special 6 | . . . . . . . . . . . . . . . . . . . . . 1 1 . . . 4 . Kinetic 271 | . 20 8 . 72 95 64 . . . . . 5 . . . . . . . . . . . 7 . . . Thermal 8 | . . . . . . . . . . . . 2 . 2 . . . . . . 1 1 . . . 2 . Explosive 15 | . 2 . . 3 5 . . . 2 . . . . . 2 . . . . . 1 . . . . . . Electromagnetic 99 | . 18 6 . . 70 5 . . . . . . . . . . . . . . . . . . . . . Entropic 12 | . . . . . . . . . . . . . . . . . . . . . . . . . . 11 1 Robot Hit Streak 21 | . 5 3 . 11 14 6 . . . . . . . . . . . . . . . . . 8 . 20 21 Robot Miss Streak 5 | . 2 2 . 3 5 3 . . . . . . . . . . . . . . . . . . . . . Penetration Max 1 | . . . . . . 1 . . . . . 1 . . . . . . . . . . . . . . . Secondary Targets 1 | . . 1 . . . . . . . . . . . . . . . . . . . . . . . . . Max Gunslinging Chain 1 | . . 1 . . . . . . . . . . . . . . . . . . . . . . . . . Capacitor 11 | . . . . . . . . . . . . . . . . . . . . . . . . . . 10 1 Shots Hit Robots 348 | . 24 9 . 44 120 41 . 1 3 2 9 6 3 1 4 . . . . 1 3 . 2 31 . 43 1 Core Hits 183 | . 14 5 . 25 77 20 . . 5 . 5 1 . 1 . . . . . . . . . 12 . 17 1 Critical Kills 2 | . . . . . 1 . . . . . . 1 . . . . . . . . . . . . . . . Critical Parts Destroyed 2 | . . . . . . . . . . . . 2 . . . . . . . . . . . . . . . Critical Strikes 28 | . . . . . 1 10 . . . . . 3 . . . . . . . . . . . . . 14 . Destroy 4 | . . . . . 1 . . . . . . 3 . . . . . . . . . . . . . . . Blast 10 | . . . . . . 10 . . . . . . . . . . . . . . . . . . . . . Impale 14 | . . . . . . . . . . . . . . . . . . . . . . . . . . 14 . Melee Attacks 171 | . . . . . 2 . . 3 10 6 9 6 3 4 12 . . . . 3 12 1 3 51 10 36 . Impact . | . . . . . . . . . . . . . . . . . . . . . . . . . . . . Slashing 100 | . . . . . 2 . . 2 10 5 9 . . 4 12 . . . . 3 12 1 3 37 . . . Piercing 60 | . . . . . . . . . . . . . . . . . . . . . . . . 14 10 36 . Sneak Attacks 36 | . . . . . 1 . . 1 3 2 7 6 3 . 2 . . . . 1 3 . 1 3 . 3 . Combat Hostiles 1 | . . . . . . . . . . . . . . . . . . . . . . . . . . 1 . Follow-up Attacks 3 | . . . . . . . . . . . . . . . . . . . . . . . . 2 . 1 . Damage Inflicted 19412 | . 546 116 . 885 3600 2299 . . 545 88 796 37 . 41 266 . . . . 74 280 . 179 2259 . 6929 472 Guns 2785 | . 330 116 . 542 1548 . . . . . . 37 . . . . . . . . . . . 212 . . . Cannons 6791 | . . . . . 242 2053 . . . . . . . . . . . . . . . . . . . 4024 472 Explosions 2824 | . 216 . . 343 1736 194 . . 335 . . . . . . . . . . . . . . . . . . Melee 6944 | . . . . . 58 . . . 210 88 796 . . 41 266 . . . . 74 280 . 179 2047 . 2905 . Ramming 68 | . . . . . 16 52 . . . . . . . . . . . . . . . . . . . . . Kinetic 4041 | . 184 65 . 542 948 2053 . . . . . 37 . . . . . . . . . . . 212 . . . Thermal 479 | . . . . . 479 . . . . . . . . . . . . . . . . . . . . . . Explosive 1501 | . 216 . . 343 607 . . . 335 . . . . . . . . . . . . . . . . . . Electromagnetic 1883 | . 146 51 . . 1492 194 . . . . . . . . . . . . . . . . . . . . . Impact . | . . . . . . . . . . . . . . . . . . . . . . . . . . . . Slashing 4039 | . . . . . 58 . . . 210 88 796 . . 41 266 . . . . 74 280 . 179 2047 . . . Piercing 2905 | . . . . . . . . . . . . . . . . . . . . . . . . . . 2905 . Entropic 4496 | . . . . . . . . . . . . . . . . . . . . . . . . . . 4024 472 Highest Corruption 8 | . . . . . . . . . . . . . . . . . . . . . 1 . . 8 1 2 1 Average Corruption 2 | . . . . . . . . . . . . . . . . . . . . . 1 . . 2 1 1 1 Corruption Purged 2 | . . . . . . . . . . . . . . . . . . . . . . . . . . 2 . Corruption Blocked . | . . . . . . . . . . . . . . . . . . . . . . . . . . . . Effects 21 | . . . . . . . . . . . . . . . . . . . . . . . . 14 . 7 . Message Errors 6 | . . . . . . . . . . . . . . . . . . . . . . . . 3 . 3 . Matter Fused 8 | . . . . . . . . . . . . . . . . . . . . . . . . 5 . 3 . Heat Flow Errors 1 | . . . . . . . . . . . . . . . . . . . . . . . . 1 . . . Energy Discharges 4 | . . . . . . . . . . . . . . . . . . . . . . . . 4 . . . Parts Rejected 1 | . . . . . . . . . . . . . . . . . . . . . . . . 1 . . . Data Loss (minor) 1 | . . . . . . . . . . . . . . . . . . . . . . . . . . 1 . Overload Shots . | . . . . . . . . . . . . . . . . . . . . . . . . . . . . Overflow Damage 2309 | . . . . 16 56 186 . . 27 58 226 . . . 148 . . . . 44 190 . 128 287 . 943 . Projectiles 930 | . . . . . 19 171 . . . . . . . . . . . . . . . . . . . 740 . Explosions 71 | . . . . 16 37 15 . . 3 . . . . . . . . . . . . . . . . . . Melee 1308 | . . . . . . . . . 24 58 226 . . . 148 . . . . 44 190 . 128 287 . 203 . Knockbacks 8 | . . . . . 4 4 . . . . . . . . . . . . . . . . . . . . . Impact . | . . . . . . . . . . . . . . . . . . . . . . . . . . . . Kinetic 7 | . . . . . 3 4 . . . . . . . . . . . . . . . . . . . . . Secondary 1 | . . . . . 1 . . . . . . . . . . . . . . . . . . . . . . Self-Inflicted Damage 85 | . . . . . 56 . . . . . . . . . 29 . . . . . . . . . . . . Shots 2 | . . . . . 1 . . . . . . . . . 1 . . . . . . . . . . . . Rammed 9 | . 1 . . . 2 6 . . . . . . . . . . . . . . . . . . . . . Targets Rammed 10 | . 1 . . . 2 7 . . . . . . . . . . . . . . . . . . . . . Kicked . | . . . . . . . . . . . . . . . . . . . . . . . . . . . . Crushed 1 | . . . . . . 1 . . . . . . . . . . . . . . . . . . . . . Highest Temperature 401 | . 69 75 . 12 229 73 . . 30 27 . 60 . 60 101 83 111 106 69 6 . . . 123 . 401 128 Average Temperature 37 | . 36 43 . 5 54 21 . . 16 9 . 30 . 34 32 30 34 32 27 1 . . . 45 . 163 82 Received Heat Transfer 1569 | . 87 99 . 174 675 207 . . . 27 . . . . . 30 . . . . . . . 153 45 72 . Effects 5 | . . . . . 4 . . . . . . . . . . . . . . . . . . . . 1 . Energy Bleed 2 | . . . . . 1 . . . . . . . . . . . . . . . . . . . . 1 . Interference 3 | . . . . . 3 . . . . . . . . . . . . . . . . . . . . . . Siege Activations 1 | . . . . . . . . . . . . . . . . . . . . . . . . . . 1 . Total Turns 21 | . . . . . . . . . . . . . . . . . . . . . . . . . . 21 . Longest Duration 21 | . . . . . . . . . . . . . . . . . . . . . . . . . . 21 . Martial Activations . | . . . . . . . . . . . . . . . . . . . . . . . . . . . . Shielding Activations . | . . . . . . . . . . . . . . . . . . . . . . . . . . . . Robots Disrupted . | . . . . . . . . . . . . . . . . . . . . . . . . . . . . Combat Hostiles . | . . . . . . . . . . . . . . . . . . . . . . . . . . . . Robots Corrupted . | . . . . . . . . . . . . . . . . . . . . . . . . . . . . Combat Hostiles . | . . . . . . . . . . . . . . . . . . . . . . . . . . . . Parts Fried 7 | . . . . . 4 3 . . . . . . . . . . . . . . . . . . . . . Impact Corruptions . | . . . . . . . . . . . . . . . . . . . . . . . . . . . . Robots Melted . | . . . . . . . . . . . . . . . . . . . . . . . . . . . . Combat Hostiles . | . . . . . . . . . . . . . . . . . . . . . . . . . . . . Parts Melted . | . . . . . . . . . . . . . . . . . . . . . . . . . . . . Heat Transferred 550 | . . . . . 550 . . . . . . . . . . . . . . . . . . . . . . Parts Sabotaged . | . . . . . . . . . . . . . . . . . . . . . . . . . . . . Parts Stolen . | . . . . . . . . . . . . . . . . . . . . . . . . . . . . Parts Stripped . | . . . . . . . . . . . . . . . . . . . . . . . . . . . . Power Chain Reactions 8 | . . . . . 7 1 . . . . . . . . . . . . . . . . . . . . . Alert | -11 -10 -10 -10 -9 -8 -8 -8 -8 -6 -5 -5 -5 -5 -4 -4 -4 -4 -4 -3 -3 -3 -2 -2 -2 -1 -1 -1 ------- Run | Yrd Mat Min Exi Min Mat Sto Rec Scr Fac Fac Upp Upp Zhi Pro Fac Upp Upp War Pro Res Tes Res Qua Frg Acc Com Ac0 Maximum Alert Level 2 | . . . . . 1 1 . . . . . . . . 2 . . . . . . . . 1 2 2 . Low Security (%) 70 | 100 100 100 . 100 71 65 100 . 100 100 . . . . . . . . . 100 100 100 100 82 56 . . Level 1 11 | . . . . . 28 34 . . . . . . . . 42 . . . . . . . . 17 35 . . Level 2 18 | . . . . . . . . . . . . . . . 57 . . . . . . . . . 8 99 . Level 3 . | . . . . . . . . . . . . . . . . . . . . . . . . . . . . Level 4 . | . . . . . . . . . . . . . . . . . . . . . . . . . . . . Level 5 . | . . . . . . . . . . . . . . . . . . . . . . . . . . . . High Security . | . . . . . . . . . . . . . . . . . . . . . . . . . . . . Max Security . | . . . . . . . . . . . . . . . . . . . . . . . . . . . . Peak Influence 604 | . 103 35 . 111 255 260 95 . 111 145 . . . . 452 . . . . 56 40 19 162 293 404 604 . Initial 450 | . . . . . 33 61 95 . . 37 . . . . 450 . . . . . 25 3 9 81 175 252 . Average 107 | . 31 3 . 26 148 181 53 . 38 74 . . . . 401 . . . . 16 15 6 130 111 237 527 . Influence Increases 5126 | . 201 55 . 279 800 541 . . 166 198 5 . . 59 527 45 15 . 50 131 121 65 266 736 349 517 . Destroy 0b10 Robot/C 1380 | . 140 40 . 200 400 280 . . 60 . . . . 40 . . . . 40 . . . . 120 . 60 . Destroy 0b10 Robot/NC 265 | . 10 5 . 20 70 55 . . 15 5 5 . . 5 10 . . . . 5 . . 5 20 . 35 . Destroy Leader 306 | . 34 10 . 30 102 78 . . 10 . . . . . . . . . 10 . . . . 22 . 10 . Allied During Kill 15 | . . . . . 1 . . . . . . . . 14 . . . . . . . . . . . . . Successful Hack 12 | . . . . . . . . . . . . . . . . . . . . . . . . . . 12 . Disable Machine 510 | . . . . . 15 60 . . . . . . . . 15 . . . . . 75 . 105 135 45 60 . Anti-Garrison Action 50 | . . . . . . . . . . . . . . . . . . . . . . . . . . 50 . Destroy Structure 698 | . 17 . . 14 47 38 . . 36 28 . . . . 52 . . . . 36 46 35 36 49 64 200 . Advance Influence 450 | . . . . . . . . . . . . . . . 450 . . . . . . . . . . . . Partial Spotted 330 | . . . . . . . . . 30 75 . . . . . . . . . 75 . 30 30 75 15 . . Lose Combat Pursuer 1110 | . . . . 15 165 30 . . 15 90 . . . . . 45 15 . . 15 . . 90 315 225 90 . Influence Decreases 5126 | . 201 55 . 192 742 440 241 5 88 151 127 3 . 59 230 151 108 98 50 85 161 53 139 588 248 222 689 Entered New Map 1677 | . . . . . 54 84 151 5 . 41 47 2 . . . 111 38 98 . . 21 3 9 64 118 142 689 Time Decay 2802 | . 191 45 . 172 518 326 90 . 88 110 80 1 . 25 130 40 70 . 10 85 129 50 130 342 110 60 . Search Patrol Dispatched 100 | . . . . . . . . . . . . . . . 100 . . . . . . . . . . . . Lost Part 453 | . 10 10 . 20 150 30 . . . . . . . . . . . . . . 11 . . 182 20 20 . Lost Ally 94 | . . . . . 20 . . . . . . . . 34 . . . . 40 . . . . . . . . Squads Dispatched 27 | . 2 . . . 6 2 . . 2 2 . . . . . . . . . 2 3 1 . 4 2 1 . Investigation 6 | . 1 . . . 2 . . . . . . . . . . . . . . . 1 . . 2 . . . Extermination 9 | . . . . . . . . . 1 1 . . . . . . . . . 2 1 1 . 1 2 . . Reinforcement 10 | . 1 . . . 4 2 . . 1 1 . . . . . . . . . . . . . 1 . . . Assault 2 | . . . . . . . . . . . . . . . . . . . . . 1 . . . . 1 . Garrison . | . . . . . . . . . . . . . . . . . . . . . . . . . . . . Intercept . | . . . . . . . . . . . . . . . . . . . . . . . . . . . . Searches Triggered 1 | . . . . . . . . . . . . . . . 1 . . . . . . . . . . . . Construction Impeded 2 | . . . . . 2 . . . . . . . . . . . . . . . . . . . . . . Haulers Reinforced . | . . . . . . . . . . . . . . . . . . . . . . . . . . . . Active Scanning Responses . | . . . . . . . . . . . . . . . . . . . . . . . . . . . . Cargo Convoy Interrupts . | . . . . . . . . . . . . . . . . . . . . . . . . . . . . Stealth | -11 -10 -10 -10 -9 -8 -8 -8 -8 -6 -5 -5 -5 -5 -4 -4 -4 -4 -4 -3 -3 -3 -2 -2 -2 -1 -1 -1 --------- Run | Yrd Mat Min Exi Min Mat Sto Rec Scr Fac Fac Upp Upp Zhi Pro Fac Upp Upp War Pro Res Tes Res Qua Frg Acc Com Ac0 Distress Signals 25 | . . . . . 2 2 . . . 1 . . . 1 1 . . . . 1 . . . 4 . 13 . Communications Jammed 5 | . . . . . . . . . . . . . . . . . . . . 2 . . 3 . . . . Distress Signals 5 | . . . . . . . . . . . . . . . . . . . . 2 . . 3 . . . . Times Spotted 238 | . 12 2 . 11 42 21 . . 3 11 . . . 2 2 3 1 2 . 4 7 3 9 68 20 9 6 Peak Tracking Total 15 | . 4 2 . 4 5 7 . . 4 8 . 1 . 2 3 3 1 6 . 2 5 2 6 15 8 6 4 Tactical Retreats 37 | . . . . 1 10 2 . . 1 2 . . . . . 1 1 . . 1 . . 4 7 4 3 . Traps | -11 -10 -10 -10 -9 -8 -8 -8 -8 -6 -5 -5 -5 -5 -4 -4 -4 -4 -4 -3 -3 -3 -2 -2 -2 -1 -1 -1 ------- Run | Yrd Mat Min Exi Min Mat Sto Rec Scr Fac Fac Upp Upp Zhi Pro Fac Upp Upp War Pro Res Tes Res Qua Frg Acc Com Ac0 Traps Triggered 23 | . 2 . . 2 1 3 . . . 2 . . . . . . . . . 1 1 . . 8 1 2 . Indirectly . | . . . . . . . . . . . . . . . . . . . . . . . . . . . . Trap Hack Attempts . | . . . . . . . . . . . . . . . . . . . . . . . . . . . . Triggered . | . . . . . . . . . . . . . . . . . . . . . . . . . . . . Disarmed . | . . . . . . . . . . . . . . . . . . . . . . . . . . . . Reprogrammed . | . . . . . . . . . . . . . . . . . . . . . . . . . . . . Reused . | . . . . . . . . . . . . . . . . . . . . . . . . . . . . Traps Extracted . | . . . . . . . . . . . . . . . . . . . . . . . . . . . . Installed 3 | . . . . 2 1 . . . . . . . . . . . . . . . . . . . . . . Triggered . | . . . . . . . . . . . . . . . . . . . . . . . . . . . . Most Traps Carried 3 | . . 3 3 3 1 . . . . . . . . . . . . . . . . . . . . . . Machines | -11 -10 -10 -10 -9 -8 -8 -8 -8 -6 -5 -5 -5 -5 -4 -4 -4 -4 -4 -3 -3 -3 -2 -2 -2 -1 -1 -1 ---------- Run | Yrd Mat Min Exi Min Mat Sto Rec Scr Fac Fac Upp Upp Zhi Pro Fac Upp Upp War Pro Res Tes Res Qua Frg Acc Com Ac0 Machines Disabled 43 | . . . . . 1 4 . 1 . . . 1 . . 1 1 . 1 . . 6 1 7 10 3 6 . Max in Single Turn 2 | . . . . . 1 2 . 1 . . . 1 . . 1 1 . 1 . . 1 1 1 1 1 2 . Phase Generator 1 | . . . . . . . . . . . . . . . . . . . . . . . . . . 1 . Machines Repaired . | . . . . . . . . . . . . . . . . . . . . . . . . . . . . Machines Dismantled . | . . . . . . . . . . . . . . . . . . . . . . . . . . . . Machines Sabotaged . | . . . . . . . . . . . . . . . . . . . . . . . . . . . . Overloaded Fab Kills . | . . . . . . . . . . . . . . . . . . . . . . . . . . . . Hacking | -11 -10 -10 -10 -9 -8 -8 -8 -8 -6 -5 -5 -5 -5 -4 -4 -4 -4 -4 -3 -3 -3 -2 -2 -2 -1 -1 -1 --------- Run | Yrd Mat Min Exi Min Mat Sto Rec Scr Fac Fac Upp Upp Zhi Pro Fac Upp Upp War Pro Res Tes Res Qua Frg Acc Com Ac0 Machines Accessed 8 | . . . . . . . . . . . . . . . . . . 1 . . . . . 3 3 1 . Terminals 3 | . . . . . . . . . . . . . . . . . . . . . . . . . 2 1 . Fabricators 1 | . . . . . . . . . . . . . . . . . . . . . . . . . 1 . . Repair Stations . | . . . . . . . . . . . . . . . . . . . . . . . . . . . . Recycling Units 1 | . . . . . . . . . . . . . . . . . . . . . . . . 1 . . . Scanalyzers 1 | . . . . . . . . . . . . . . . . . . . . . . . . 1 . . . Garrison Access 1 | . . . . . . . . . . . . . . . . . . . . . . . . 1 . . . Total Hacks 10 | . . . . . . . . . . . . . . . . . . 1 . . . . . 4 4 1 . Successful 3 | . . . . . . . . . . . . . . . . . . 1 . . . . . 1 . 1 . Failed 7 | . . . . . . . . . . . . . . . . . . . . . . . . 3 4 . . Catastrophic 2 | . . . . . . . . . . . . . . . . . . . . . . . . 1 1 . . Database Lockouts . | . . . . . . . . . . . . . . . . . . . . . . . . . . . . Manual 4 | . . . . . . . . . . . . . . . . . . . . . . . . 3 . 1 . Terminals 3 | . . . . . . . . . . . . . . . . . . . . . . . . . 2 1 . Fabricators 2 | . . . . . . . . . . . . . . . . . . . . . . . . . 2 . . Repair Stations . | . . . . . . . . . . . . . . . . . . . . . . . . . . . . Recycling Units 1 | . . . . . . . . . . . . . . . . . . . . . . . . 1 . . . Scanalyzers 1 | . . . . . . . . . . . . . . . . . . . . . . . . 1 . . . Garrison Access 2 | . . . . . . . . . . . . . . . . . . . . . . . . 2 . . . Terminal Hacks 1 | . . . . . . . . . . . . . . . . . . 1 . . . . . . . . . Open Door 1 | . . . . . . . . . . . . . . . . . . 1 . . . . . . . . . Fabricator Hacks . | . . . . . . . . . . . . . . . . . . . . . . . . . . . . Repair Station Hacks . | . . . . . . . . . . . . . . . . . . . . . . . . . . . . Recycling Unit Hacks . | . . . . . . . . . . . . . . . . . . . . . . . . . . . . Scanalyzer . | . . . . . . . . . . . . . . . . . . . . . . . . . . . . Garrison Access Hacks . | . . . . . . . . . . . . . . . . . . . . . . . . . . . . Unauthorized Hacks 2 | . . . . . . . . . . . . . . . . . . . . . . . . 1 . 1 . Terminals 1 | . . . . . . . . . . . . . . . . . . . . . . . . . . 1 . Track 1 | . . . . . . . . . . . . . . . . . . . . . . . . . . 1 . Fabricators . | . . . . . . . . . . . . . . . . . . . . . . . . . . . . Repair Stations . | . . . . . . . . . . . . . . . . . . . . . . . . . . . . Recycling Units 1 | . . . . . . . . . . . . . . . . . . . . . . . . 1 . . . Fedlink 1 | . . . . . . . . . . . . . . . . . . . . . . . . 1 . . . Scanalyzers . | . . . . . . . . . . . . . . . . . . . . . . . . . . . . Garrison Access . | . . . . . . . . . . . . . . . . . . . . . . . . . . . . Data Cores Recovered 3 | . . . . . 1 . . . . . . . . . . . . . . . . . 1 . . 1 . Used . | . . . . . . . . . . . . . . . . . . . . . . . . . . . . Hacking Detections 6 | . . . . . . . . . . . . . . . . . . . . . . . . 2 3 1 . Full Trace Events 1 | . . . . . . . . . . . . . . . . . . . . . . . . 1 . . . Feedback Events . | . . . . . . . . . . . . . . . . . . . . . . . . . . . . Feedback Blocked . | . . . . . . . . . . . . . . . . . . . . . . . . . . . . Robot Schematics Acquired . | . . . . . . . . . . . . . . . . . . . . . . . . . . . . Robots Built . | . . . . . . . . . . . . . . . . . . . . . . . . . . . . Authchips . | . . . . . . . . . . . . . . . . . . . . . . . . . . . . Time . | . . . . . . . . . . . . . . . . . . . . . . . . . . . . Total Robot Build Rating . | . . . . . . . . . . . . . . . . . . . . . . . . . . . . Part Schematics Acquired . | . . . . . . . . . . . . . . . . . . . . . . . . . . . . Parts Built . | . . . . . . . . . . . . . . . . . . . . . . . . . . . . Authchips . | . . . . . . . . . . . . . . . . . . . . . . . . . . . . Time . | . . . . . . . . . . . . . . . . . . . . . . . . . . . . Total Part Build Rating . | . . . . . . . . . . . . . . . . . . . . . . . . . . . . Part Studies Acquired . | . . . . . . . . . . . . . . . . . . . . . . . . . . . . Parts Repaired . | . . . . . . . . . . . . . . . . . . . . . . . . . . . . Time . | . . . . . . . . . . . . . . . . . . . . . . . . . . . . Parts Recycled . | . . . . . . . . . . . . . . . . . . . . . . . . . . . . Recycled Matter . | . . . . . . . . . . . . . . . . . . . . . . . . . . . . Retrieved Matter . | . . . . . . . . . . . . . . . . . . . . . . . . . . . . Retrieved Components . | . . . . . . . . . . . . . . . . . . . . . . . . . . . . Parts Scanalyzed . | . . . . . . . . . . . . . . . . . . . . . . . . . . . . Part Schematics Acquired . | . . . . . . . . . . . . . . . . . . . . . . . . . . . . Parts Damaged . | . . . . . . . . . . . . . . . . . . . . . . . . . . . . Bothacking | -11 -10 -10 -10 -9 -8 -8 -8 -8 -6 -5 -5 -5 -5 -4 -4 -4 -4 -4 -3 -3 -3 -2 -2 -2 -1 -1 -1 ------------ Run | Yrd Mat Min Exi Min Mat Sto Rec Scr Fac Fac Upp Upp Zhi Pro Fac Upp Upp War Pro Res Tes Res Qua Frg Acc Com Ac0 Used RIF Installer . | . . . . . . . . . . . . . . . . . . . . . . . . . . . . Robots Hacked 5 | . . . . . . . . 1 . 1 . . 3 . . . . . . . . . . . . . . Non-combat 1 | . . . . . . . . . . 1 . . . . . . . . . . . . . . . . . Combat 4 | . . . . . . . . 1 . . . . 3 . . . . . . . . . . . . . . Robot Hacks Applied 5 | . . . . . . . . 1 . 1 . . 3 . . . . . . . . . . . . . . parse_system 4 | . . . . . . . . 1 . . . . 3 . . . . . . . . . . . . . . find_chute 1 | . . . . . . . . . . 1 . . . . . . . . . . . . . . . . . Relay Couplers Released . | . . . . . . . . . . . . . . . . . . . . . . . . . . . . Fabnet Peak Effective % . | . . . . . . . . . . . . . . . . . . . . . . . . . . . . Robots Rewired 9 | . . . . . . . . . . . . 4 . . . . . 5 . . . . . . . . . Allies Hacked . | . . . . . . . . . . . . . . . . . . . . . . . . . . . . Hacks Repelled . | . . . . . . . . . . . . . . . . . . . . . . . . . . . . Allies | -11 -10 -10 -10 -9 -8 -8 -8 -8 -6 -5 -5 -5 -5 -4 -4 -4 -4 -4 -3 -3 -3 -2 -2 -2 -1 -1 -1 -------- Run | Yrd Mat Min Exi Min Mat Sto Rec Scr Fac Fac Upp Upp Zhi Pro Fac Upp Upp War Pro Res Tes Res Qua Frg Acc Com Ac0 Total Allies 12 | . . 2 . 1 . . . . . . . 4 . . . . . 5 . . . . . . . . . Largest Group 5 | . . 2 2 1 1 . . . . . . 4 4 4 . . . 5 2 . . . . . . . . Highest-Rated Group 256 | . . 38 38 31 31 . . . . . . 116 116 116 . . . 256 112 . . . . . . . . Highest-Rated Ally 56 | . . 31 31 31 31 . . . . . . 29 29 29 . . . 56 56 . . . . . . . . Initial UFD Resources 36 | . . . . . . . . . 23 25 25 25 25 28 28 28 28 28 32 32 32 36 36 36 . . . Total Orders 2 | . . . . . . . . . . . . . . . . . . 2 . . . . . . . . . STAY 1 | . . . . . . . . . . . . . . . . . . 1 . . . . . . . . . FOLLOW 1 | . . . . . . . . . . . . . . . . . . 1 . . . . . . . . . Ally Attacks 66 | . . . . . 5 . . . . . . . . 55 . . . . 6 . . . . . . . . Total Damage 974 | . . . . . 43 . . . . . . . . 704 . . . . 227 . . . . . . . . Kills 4 | . . . . . . . . . . . . . . 2 . . . . 2 . . . . . . . . Allies Corrupted . | . . . . . . . . . . . . . . . . . . . . . . . . . . . . Allies Melted 2 | . . . . . . . . 2 . . . . . . . . . . . . . . . . . . . Intel | -11 -10 -10 -10 -9 -8 -8 -8 -8 -6 -5 -5 -5 -5 -4 -4 -4 -4 -4 -3 -3 -3 -2 -2 -2 -1 -1 -1 ------- Run | Yrd Mat Min Exi Min Mat Sto Rec Scr Fac Fac Upp Upp Zhi Pro Fac Upp Upp War Pro Res Tes Res Qua Frg Acc Com Ac0 Active Infowar (turns) 11895 | . 363 496 375 615 1517 731 182 1977 316 220 179 265 72 391 265 99 145 317 150 311 325 168 271 789 231 1125 . Optics 4261 | . . . . . . . . . . 218 179 265 72 391 265 99 145 317 150 311 325 168 271 789 231 65 . Sensors 4808 | . . . . . . . . 15 291 134 178 253 72 386 264 91 144 307 150 311 295 162 229 196 214 1116 . Structural 3307 | . . . . . . . . . 31 58 130 265 65 387 263 96 142 302 148 311 306 161 225 206 135 76 . Traps 131 | . . . . . . . . . . . . . . . 29 99 3 . . . . . . . . . . T.N.C. 6245 | . 363 496 375 615 1517 731 182 1966 . . . . . . . . . . . . . . . . . . . Cloaking 951 | . . . . . . . . . . . . . . . . . . . . . . . . . . 951 . Jamming 1181 | . . . . . . . . . . . . . . . . . . 10 . 178 193 168 271 361 . . . Robot Analysis Total . | . . . . . . . . . . . . . . . . . . . . . . . . . . . . Derelict Logs Recovered 10 | . . . . 1 . . . . . . 1 1 . 1 . 3 3 . . . . . . . . . . Drone Launches . | . . . . . . . . . . . . . . . . . . . . . . . . . . . . Drone Recoveries . | . . . . . . . . . . . . . . . . . . . . . . . . . . . . Exploration | -11 -10 -10 -10 -9 -8 -8 -8 -8 -6 -5 -5 -5 -5 -4 -4 -4 -4 -4 -3 -3 -3 -2 -2 -2 -1 -1 -1 ------------- Run | Yrd Mat Min Exi Min Mat Sto Rec Scr Fac Fac Upp Upp Zhi Pro Fac Upp Upp War Pro Res Tes Res Qua Frg Acc Com Ac0 Turns Passed 13310 | 80 899 496 375 615 1517 731 182 2440 327 220 179 265 72 391 265 99 145 317 150 311 325 168 271 789 231 1439 11 Spaces Moved 16539 | 52 305 264 215 238 545 193 75 1532 958 579 539 569 123 671 625 485 440 692 639 1063 538 546 563 1741 734 1599 16 Core 196 | 16 . . . . . . . 164 . . . . . . . . . . . . . . . . . . 16 Treads 1199 | 36 174 . . . 86 188 75 637 . . . . . . . . . . . . . . . . . 3 . Legs . | . . . . . . . . . . . . . . . . . . . . . . . . . . . . Wheels 1312 | . 131 264 215 238 459 5 . . . . . . . . . . . . . . . . . . . . . Hover . | . . . . . . . . . . . . . . . . . . . . . . . . . . . . Flight 13832 | . . . . . . . . 731 958 579 539 569 123 671 625 485 440 692 639 1063 538 546 563 1741 734 1596 . Fastest Speed 6 | 50 160 175 175 175 123 215 240 26 20 18 20 20 20 20 17 17 17 17 17 17 16 19 17 6 8 8 50 Average Speed 49 | 132 166 175 175 177 203 240 240 126 22 19 20 21 20 20 17 17 17 17 17 17 25 23 28 21 11 25 50 Slowest Speed 400 | 200 175 175 175 200 330 243 240 400 169 21 91 91 20 91 17 17 17 17 17 19 99 91 100 100 75 160 50 Overloaded Moves 1017 | . . . . . . . . . . . . . . . . . . . . . 59 . 81 742 64 71 . Propulsion Burnouts . | . . . . . . . . . . . . . . . . . . . . . . . . . . . . Robots Hopped 49 | . . . . . . . . . 3 2 1 . . . . . 5 . . 8 9 2 2 13 1 3 . Potential Cave-ins 4 | . . . . . . . . . . . . . . . . . . . . . 3 . . . . 1 . Cave-ins Triggered . | . . . . . . . . . . . . . . . . . . . . . . . . . . . . Teleports 6 | . . . . . . . . . . . . . . . . . . . . . . . 1 3 . 1 1 Exploration Rate (%) 50 | 3 46 71 60 60 46 35 16 84 27 23 69 68 58 78 23 74 65 89 94 35 42 19 79 59 23 60 2 Regions Visited 27 Branch Regions 19 Pre-discovered Areas 3 | . . . . . . . . . . . . 1 . 1 . 1 . . . . . . . . . . . Known Exits Taken 21 | . . . . . 1 1 1 1 1 1 1 1 1 1 1 1 1 1 1 1 1 1 1 1 1 . . Unknown Exits Taken 6 | 1 1 1 1 1 . . . . . . . . . . . . . . . . . . . . . 1 . Scrap Searched 18 | . . 1 . 1 . . . 8 . . 1 1 . 1 . 2 2 . 1 . . . . . . . . Spaces Dug 195 | . . . . . . . . 6 19 14 1 6 . 11 7 7 3 2 2 18 19 12 14 15 20 19 . Terrain Destroyed 451 | . 17 . . 15 52 37 . 5 54 14 1 7 . 11 29 7 3 2 2 18 32 7 14 15 20 89 . Melee 25 | . . . . . . . . . 7 2 . . . 3 7 . . . . . 3 1 . 2 . . . Projectile 39 | . . . . . . 33 . . . . . 2 . 2 . . . . . . 2 . . . . . . AOE 235 | . 17 . . 15 52 4 . . 35 . . . . . 22 . . . . . 13 . . . . 77 . Terrain Rammed . | . . . . . . . . . . . . . . . . . . . . . . . . . . . . Walls Destroyed . | . . . . . . . . . . . . . . . . . . . . . . . . . . . . Machines Disabled . | . . . . . . . . . . . . . . . . . . . . . . . . . . . . Actions | -11 -10 -10 -10 -9 -8 -8 -8 -8 -6 -5 -5 -5 -5 -4 -4 -4 -4 -4 -3 -3 -3 -2 -2 -2 -1 -1 -1 --------- Run | Yrd Mat Min Exi Min Mat Sto Rec Scr Fac Fac Upp Upp Zhi Pro Fac Upp Upp War Pro Res Tes Res Qua Frg Acc Com Ac0 Total 20878 | 60 654 284 214 356 778 359 78 2035 1041 668 594 703 170 916 762 497 503 894 678 1173 705 579 665 2051 859 2585 17 Wait 2965 | . 308 8 . 55 12 49 . 428 31 42 40 108 29 227 116 4 65 142 37 94 105 11 73 109 62 810 . Move 16415 | 51 304 263 214 237 544 192 74 1531 951 574 536 568 122 670 624 484 429 691 638 1046 519 541 558 1714 731 1594 15 Hop 47 | . . . . . . . . . 3 2 1 . . . . . 5 . . 8 9 2 2 13 1 1 . Pick Up 215 | 3 12 5 . 5 28 12 2 28 5 9 1 1 3 1 2 1 1 4 . 4 4 6 8 31 8 31 . Fast Attach 106 | 6 1 . . . 13 4 . 5 2 3 . . 5 1 . . . 9 . 1 6 1 5 34 2 7 1 Attach 159 | . 1 1 . 2 18 6 1 9 10 4 2 4 1 2 3 . . 2 . 2 19 8 2 28 9 25 . Detach 87 | . . . . . 6 2 . 4 6 . 2 4 . 2 1 . . . . 4 18 3 . 17 3 15 . Swap 131 | . 4 . . 1 11 2 . 3 18 21 2 3 . 4 2 7 2 4 3 5 1 1 5 11 10 11 . Drop 203 | . 1 . . 3 19 16 1 24 3 7 1 1 7 3 . 1 1 17 . 6 10 4 9 28 8 33 . Fire 297 | . 22 7 . 39 121 69 . . 2 . . 7 . 2 2 . . . . . 2 1 . 7 . 15 1 Melee 167 | . . . . . 2 . . 3 10 6 9 6 3 4 12 . . . . 3 12 1 3 48 10 35 . Ram 1 | . . . . . 1 . . . . . . . . . . . . . . . . . . . . . . Kick . | . . . . . . . . . . . . . . . . . . . . . . . . . . . . Crush 9 | . 1 . . . 1 7 . . . . . . . . . . . . . . . . . . . . . Escape Stasis 45 | . . . . 12 1 . . . . . . . . . . . . . . . . . . 11 15 6 . Rewire 27 | . . . . . . . . . . . . . . . . . . 25 . . . . . . . 2 . Trap 3 | . . . . 2 1 . . . . . . . . . . . . . . . . . . . . . . Miscellaneous 1 | . . . . . . . . . . . . 1 . . . . . . . . . . . . . . . Route ------- -11/Scrapyard -10/Materials (discovered 2 exits: [*Mat] / [*Min]) -10/Mines (discovered 2 exits: [*Mat] / [*Exi]) -10/Exiles (discovered 2 exits: [*Min x2]) -9/Mines -8/Materials (discovered 2 exits: *Fac / *Sto) -8/Storage -8/Recycling -8/Scraptown (discovered 2 exits: *Fac x2) -6/Factory -5/Factory -5/Upper Caves -5/Upper Caves (discovered 2 exits: *Fac / *Zhi) -5/Zhirov -4/Proximity Caves -4/Factory (discovered 2 exits: *Upp / *Ext) -4/Upper Caves -4/Upper Caves -4/Warlord -3/Proximity Caves -3/Research -3/Testing -2/Research (discovered 4 exits: *Acc x2 / *Qua x2) -2/Quarantine (discovered 3 exits: *Acc / *Sec / *Frg) -2/Protoforge -1/Access -1/Command (discovered 3 exits: [*Sur x2] / [*Ac0]) -1/Access_0 Near Former Tau Ceti IV History --------- Turn | Location | Event 6 | -11/Scrapyard | Discovered new exit (range 15) 81 | -11/Scrapyard | Entered Materials 310 | -10/Materials | Build established: Mutant 667 | -10/Materials | Discovered new exit (range 12) 940 | -10/Materials | Discovered new exit (range 6) 980 | -10/Materials | Entered Mines 1201 | -10/Mines | Found a damaged Exp. Sensor Array with a note attached 1204 | -10/Mines | Found Prototype Device 1249 | -10/Mines | Discovered new exit (range 8) 1394 | -10/Mines | Found a hidden stash of uninstalled traps 1464 | -10/Mines | Deemed a non-threat by the Exiles lab entrance 1464 | -10/Mines | Discovered new exit (range 5) 1476 | -10/Mines | Entered Exiles 1476 | -10/Exiles | Found Exiles lab abandoned 1476 | -10/Exiles | Accompanied by 2 allies 1499 | -10/Exiles | Discovered new exit (range 15) 1506 | -10/Exiles | Led the pair of lost Derelicts to a safe place 1837 | -10/Exiles | Discovered new exit (range 10) 1851 | -10/Exiles | Entered Mines 2253 | -9/Mines | Assembled infested the area 2389 | -9/Mines | Core integrity fell below 50% 2440 | -9/Mines | Discovered new exit (range 14) 2451 | -9/Mines | Received a Mining Laser from a helpful Derelict 2466 | -9/Mines | Entered Materials 2466 | -8/Materials | Accompanied by 1 ally 2466 | -8/Materials | Evolved 4 slots: Propulsion x2, Utility x2 2607 | -8/Materials | Lost 4 parts (2n2w) 2906 | -8/Materials | Build established: Scavenger-Mutant 3095 | -8/Materials | Core integrity fell below 50% 3350 | -8/Materials | Lost 3 parts (1p1n1w) 3460 | -8/Materials | Discovered new exit (range 8) 3757 | -8/Materials | Discovered new exit (range 12) 3891 | -8/Materials | Identified exit to Factory 3981 | -8/Materials | Identified exit to Storage 3983 | -8/Materials | Entered Storage 3984 | -8/Storage | Identified exit to Recycling 4714 | -8/Storage | Entered Recycling 4838 | -8/Recycling | Scanned before Scraplab entrance 4872 | -8/Recycling | Entered Scraplab 4891 | -8/Recycling | Discovered new exit (range 3) 4893 | -8/Recycling | Identified exit to Scraptown 4896 | -8/Recycling | Entered Scraptown 5269 | -8/Scraptown | Visited Cyclists 5279 | -8/Scraptown | Heard Great Nut preacher, LISTEN AND RECITE! 5307 | -8/Scraptown | Visited Fellowship of the Rings 5346 | -8/Scraptown | Visited Shadow of the Wyrm 5420 | -8/Scraptown | Visited Bundlers 5612 | -8/Scraptown | Visited UFD Registry 5612 | -8/Scraptown | Registered with UFD as "Fissionranger" 5674 | -8/Scraptown | Visited Botcube Research 5715 | -8/Scraptown | Visited Chapter 10 5749 | -8/Scraptown | Visited DA-N13 Charitable Foundation 5761 | -8/Scraptown | Found DCF Scrap (27 items) 5854 | -8/Scraptown | Visited Scrap Suit Storage 5893 | -8/Scraptown | Visited Infowarlord's Domain 5893 | -8/Scraptown | Identified Exp. Sensor Array 5907 | -8/Scraptown | Found Exp. Signal Interpreter 5939 | -8/Scraptown | Visited Cartography Club 6008 | -8/Scraptown | Visited Abandonware Association 6047 | -8/Scraptown | Visited LU-1G1's Boring Crew 6085 | -8/Scraptown | Visited Research Penetration Think Tank 6493 | -8/Scraptown | Found Deep Structural Scanner 6758 | -8/Scraptown | Discovered new exit (range 11) 6880 | -8/Scraptown | Visited Derelict Rescue Squad 6882 | -8/Scraptown | Found DRS Beacon 6914 | -8/Scraptown | Met Optimus 6914 | -8/Scraptown | Accepted into 0bPrime 7274 | -8/Scraptown | Build established: Derelict-Mutant 7314 | -8/Scraptown | Civil war broke out across Scraptown 7321 | -8/Scraptown | Found Prototype Special Weapon 7324 | -8/Scraptown | Identified LU-1G1's Laser Shovel 7335 | -8/Scraptown | Discovered new exit (range 5) 7336 | -8/Scraptown | Identified exit to Factory 7336 | -8/Scraptown | Entered Factory 7336 | -6/Factory | Evolved 4 slots: Power x1, Propulsion x2, Utility x1 7657 | -6/Factory | Discovered new exit (range 11) 7663 | -6/Factory | Identified exit to Factory 7663 | -6/Factory | Entered another Factory area 7663 | -5/Factory | Evolved 2 slots: Propulsion x1, Utility x1 7664 | -5/Factory | Build established: Sprinter 7863 | -5/Factory | Discovered new exit (range 21) 7882 | -5/Factory | Identified exit to Upper Caves 7883 | -5/Factory | Entered Upper Caves 7888 | -5/Upper Caves | Encountered a Warlord checkpoint 7907 | -5/Upper Caves | Learned Factory terminal intel 8037 | -5/Upper Caves | Discovered new exit (range 22) 8041 | -5/Upper Caves | Identified exit to Upper Caves 8062 | -5/Upper Caves | Entered another Upper Caves area 8062 | -5/Upper Caves | Discovered new exit (range 11) 8116 | -5/Upper Caves | Activated DRS Beacon 8234 | -5/Upper Caves | Discovered new exit (range 10) 8236 | -5/Upper Caves | Identified exit to Zhirov 8327 | -5/Upper Caves | Entered Zhirov 8327 | -5/Zhirov | Accompanied by 4 allies 8327 | -5/Zhirov | Discovered new exit (range 3) 8328 | -5/Zhirov | Identified exit to Proximity Caves 8331 | -5/Zhirov | Met Zhirov 8343 | -5/Zhirov | Found Alien Artifact 8343 | -5/Zhirov | Identified Integrated Reactor 8343 | -5/Zhirov | Installed Integrated Reactor, increased core energy generation (+10) 8362 | -5/Zhirov | Found Alien Artifact 8399 | -5/Zhirov | Entered Proximity Caves 8399 | -4/Proximity Caves | Accompanied by 4 allies 8401 | -4/Proximity Caves | Spotter reported a threat 8402 | -4/Proximity Caves | Spotter reported a threat 8455 | -4/Proximity Caves | Spotter reported a threat 8670 | -4/Proximity Caves | Found Prototype Special Weapon 8766 | -4/Proximity Caves | Build established: Scout 8782 | -4/Proximity Caves | Discovered new exit (range 9) 8789 | -4/Proximity Caves | Identified exit to Factory 8790 | -4/Proximity Caves | Entered Factory 8790 | -4/Factory | Evolved 2 slots: Propulsion x1, Utility x1 8791 | -4/Factory | Loaded intel: 28 terminal locations 8982 | -4/Factory | Discovered new exit (range 13) 9015 | -4/Factory | Identified exit to Extension 9040 | -4/Factory | Search patrols dispatched 9054 | -4/Factory | Discovered new exit (range 8) 9055 | -4/Factory | Identified exit to Upper Caves 9055 | -4/Factory | Entered Upper Caves 9080 | -4/Upper Caves | Encountered a Warlord checkpoint 9090 | -4/Upper Caves | Discovered new exit (range 14) 9115 | -4/Upper Caves | Learned 4 Research zone layouts 9154 | -4/Upper Caves | Identified exit to Upper Caves 9154 | -4/Upper Caves | Entered another Upper Caves area 9200 | -4/Upper Caves | Entered a destroyed Warlord outpost 9209 | -4/Upper Caves | Learned Research terminal intel 9278 | -4/Upper Caves | Encountered a Warlord checkpoint 9278 | -4/Upper Caves | Learned Research trap positions 9279 | -4/Upper Caves | Discovered new exit (range 16) 9289 | -4/Upper Caves | Identified exit to Warlord 9290 | -4/Upper Caves | Learned location of 1 exit from Proximity Caves 9299 | -4/Upper Caves | Entered Warlord 9306 | -4/Warlord | Discovered new exit (range 15) 9351 | -4/Warlord | Found Prototype Processor 9351 | -4/Warlord | Identified Exp. Targeting Computer 9354 | -4/Warlord | Found Prototype Processor 9354 | -4/Warlord | Identified Exp. Target Analyzer 9361 | -4/Warlord | Found Prototype Reactor 9361 | -4/Warlord | Identified Vortex Chain Reactor 9382 | -4/Warlord | Found Prototype Special Weapon 9382 | -4/Warlord | Identified RU-N14's Throwing Claymores v3 9384 | -4/Warlord | Found RU-N14's Throwing Claymores v3 9446 | -4/Warlord | Met EX-DEC 9447 | -4/Warlord | Visited the Vortex Lab 9447 | -4/Warlord | Identified Molecular Deconstructor 9452 | -4/Warlord | Found Prototype Energy Cannon 9457 | -4/Warlord | Warlord's base attacked by MAIN.C 9582 | -4/Warlord | Opened side exit 9604 | -4/Warlord | Identified exit to Proximity Caves 9616 | -4/Warlord | Entered Proximity Caves 9616 | -3/Proximity Caves | Accompanied by 2 allies 9617 | -3/Proximity Caves | Identified exit to Research 9766 | -3/Proximity Caves | Entered Research 9766 | -3/Research | Evolved 2 slots: Weapon x2 9768 | -3/Research | Loaded intel: 97 trap records 9769 | -3/Research | Loaded intel: 23 terminal locations 9884 | -3/Research | Spotted B-86 Titan 10050 | -3/Research | Discovered new exit (range 15) 10076 | -3/Research | Identified exit to Testing 10077 | -3/Research | Entered Testing 10143 | -3/Testing | Discovered new exit (range 16) 10155 | -3/Testing | Found Prototype Device 10155 | -3/Testing | Identified 2N-1CE's Frost Array 10220 | -3/Testing | Found Prototype Energy Cannon 10220 | -3/Testing | Identified Hpw. Disruptor Cannon 10247 | -3/Testing | Identified exit to Research 10385 | -3/Testing | Protovariant out of control (PL-X0W9VINBG2) 10402 | -3/Testing | Entered Research 10402 | -2/Research | Evolved 2 slots: Propulsion x1, Utility x1 10403 | -2/Research | Identified exit to Quarantine 10403 | -2/Research | Discovered new exit (range 14) 10407 | -2/Research | Identified exit to Access 10413 | -2/Research | Discovered exit to Access (range 13) 10459 | -2/Research | Discovered exit to Quarantine (range 6) 10570 | -2/Research | Entered Quarantine 10587 | -2/Quarantine | Found Alien Artifact 10620 | -2/Quarantine | Cryocooling Duct disabled 10621 | -2/Quarantine | Cryocooling Duct disabled 10635 | -2/Quarantine | Ambient heat levels rising (+20) 10635 | -2/Quarantine | Non-combat units ordered to evacuate 10636 | -2/Quarantine | Ambient heat levels rising (+20) 10636 | -2/Quarantine | Combat units ordered to evacuate 10692 | -2/Quarantine | Found Alien Artifact 10694 | -2/Quarantine | Found Alien Artifact 10695 | -2/Quarantine | Identified Subatomic Replicator 10695 | -2/Quarantine | Used Subatomic Replicator to create Alien Artifact 10700 | -2/Quarantine | Found Alien Artifact 10702 | -2/Quarantine | Discovered exit to Access (range 15) 10711 | -2/Quarantine | Found Alien Artifact 10713 | -2/Quarantine | Found Alien Artifact 10713 | -2/Quarantine | Identified Dimensional Node Initializer (x3) 10713 | -2/Quarantine | Initialized slip node 10716 | -2/Quarantine | Found Alien Artifact 10716 | -2/Quarantine | Identified Hpw. Transdimensional Reconstructor (x3) 10716 | -2/Quarantine | Warped through subspace to slip node 10736 | -2/Quarantine | Quarantine Guard activated 10752 | -2/Quarantine | Found Alien Slashing Weapon 10752 | -2/Quarantine | Identified Sigix Broadsword 10789 | -2/Quarantine | Spotted Quarantine Guard 10796 | -2/Quarantine | Spotted Fortress 10839 | -2/Quarantine | Discovered new exit (range 6) 10839 | -2/Quarantine | Discovered new exit (range 7) 10840 | -2/Quarantine | Identified exit to Section 7 10841 | -2/Quarantine | Identified exit to Protoforge 10841 | -2/Quarantine | Entered Protoforge 10846 | -2/Protoforge | Spotted Hotshot 10846 | -2/Protoforge | Spotted Hotshot 10846 | -2/Protoforge | Spotted Hotshot 10887 | -2/Protoforge | Discovered exit to Access (range 5) 10890 | -2/Protoforge | Initialized slip node 11035 | -2/Protoforge | Spotted EXE-6 11035 | -2/Protoforge | Spotted EXE-6 11043 | -2/Protoforge | UFD initiated attack on Protoforge (Readiness: Minimal) 11043 | -2/Protoforge | Loaded intel: 3 recycling unit locations 11046 | -2/Protoforge | Initialized slip node 11054 | -2/Protoforge | Superfortress began startup sequence 11068 | -2/Protoforge | Spotted V048-s 11068 | -2/Protoforge | Identified Supercharged TR 11068 | -2/Protoforge | Warped through subspace to slip node 11069 | -2/Protoforge | Warped through subspace to slip node 11076 | -2/Protoforge | Found Prototype Device 11076 | -2/Protoforge | Identified Exp. Kinecellerator 11079 | -2/Protoforge | Optimus greeted in Protoforge 11079 | -2/Protoforge | Found Prototype Processor 11079 | -2/Protoforge | Identified Exp. Armor Integrity Analyzer 11081 | -2/Protoforge | Found Prototype Processor 11084 | -2/Protoforge | Found Prototype Ballistic Gun 11084 | -2/Protoforge | Identified Cep. XC Strikerail 11109 | -2/Protoforge | Forge Plexus network access discovered 11122 | -2/Protoforge | Spotted Decapitator 11123 | -2/Protoforge | Spotted Decapitator 11123 | -2/Protoforge | Spotted Decapitator 11123 | -2/Protoforge | Spotted Decapitator 11125 | -2/Protoforge | Spotted Decapitator 11131 | -2/Protoforge | Spotted SKR-2 11132 | -2/Protoforge | Spotted SKR-2 11170 | -2/Protoforge | Lost 10 allies 11194 | -2/Protoforge | Identified Exp. Core Analyzer 11215 | -2/Protoforge | Spotted Hotshot 11239 | -2/Protoforge | Spotted Striker 11241 | -2/Protoforge | Spotted Striker 11250 | -2/Protoforge | Destroyed Striker 11338 | -2/Protoforge | Spotted Decapitator 11338 | -2/Protoforge | Spotted Decapitator 11339 | -2/Protoforge | Spotted Decapitator 11339 | -2/Protoforge | Spotted Decapitator 11339 | -2/Protoforge | Spotted Decapitator 11351 | -2/Protoforge | Build established: Scavenger-Sprinter 11351 | -2/Protoforge | Spotted EXE-6 11361 | -2/Protoforge | Found Exp. Terror Saw 11363 | -2/Protoforge | Found Exp. Terror Saw 11365 | -2/Protoforge | Found Exp. Terror Saw 11367 | -2/Protoforge | Found Exp. Terror Saw 11383 | -2/Protoforge | UFD reported confirmed Drillbomb installation 11392 | -2/Protoforge | Spotted V596-r 11392 | -2/Protoforge | Spotted V388-k 11392 | -2/Protoforge | Found Exp. Jetlance 11393 | -2/Protoforge | Found Faulty Exp. Jetlance 11396 | -2/Protoforge | Found Cep. Lightning Penetrator 11401 | -2/Protoforge | Found Crosscalibrator 11403 | -2/Protoforge | Spotted Immortal 11403 | -2/Protoforge | Spotted Immortal 11404 | -2/Protoforge | Spotted Decapitator 11414 | -2/Protoforge | Found Cep. Antigrav Storage Unit 11417 | -2/Protoforge | Found Cep. Chromion Battery 11440 | -2/Protoforge | Spotted Decapitator 11440 | -2/Protoforge | Spotted Decapitator 11440 | -2/Protoforge | Spotted Decapitator 11440 | -2/Protoforge | Spotted Decapitator 11463 | -2/Protoforge | Core integrity fell below 50% 11465 | -2/Protoforge | Lost 8 parts (1p4n2u1w) 11470 | -2/Protoforge | Found Faulty Cep. Fieldthrust Drive 11471 | -2/Protoforge | Found Cep. Fieldthrust Drive 11518 | -2/Protoforge | Additional patrols dispatched to research labs 11521 | -2/Protoforge | Found Cep. Nanofilaments [Endoweave] 11525 | -2/Protoforge | Found Transdimensional Reconstructor 11544 | -2/Protoforge | Lost 3 parts (1p2n) 11555 | -2/Protoforge | Found Faulty Cep. Fieldthrust Drive 11560 | -2/Protoforge | Spotted AP7-3 11560 | -2/Protoforge | Spotted AP7-3 11567 | -2/Protoforge | Found Cep. Dimensional Manipulator 11569 | -2/Protoforge | Found Cep. Core Analysis Suite 11572 | -2/Protoforge | Found Faulty Cep. Cloak Mesh 11573 | -2/Protoforge | Found Faulty Cep. Cloak Mesh 11574 | -2/Protoforge | Warped through subspace to slip node 11577 | -2/Protoforge | Found Faulty Cep. Core Analysis Suite 11592 | -2/Protoforge | Spotted Executioner 11624 | -2/Protoforge | Spotted Executioner 11627 | -2/Protoforge | Spotted Striker 11629 | -2/Protoforge | Spotted Hotshot 11629 | -2/Protoforge | Spotted Hotshot 11629 | -2/Protoforge | Spotted Immortal 11629 | -2/Protoforge | Spotted Immortal 11629 | -2/Protoforge | Spotted Immortal 11629 | -2/Protoforge | Spotted Hotshot 11629 | -2/Protoforge | Spotted Hotshot 11630 | -2/Protoforge | Entered Access 11630 | -1/Access | Evolved 2 slots: Weapon x2 11642 | -1/Access | Identified BFG-9k Vortex Edition 11768 | -1/Access | Discovered new exit (range 5) 11806 | -1/Access | Found Quantum Capacitor 11818 | -1/Access | Identified exit to Command 11861 | -1/Access | Entered Command 11868 | -1/Command | Phase Generator disabled 11912 | -1/Command | Spotted M Guard 11912 | -1/Command | Spotted M Guard 11927 | -1/Command | Found Hvy. Reactive Plating 11947 | -1/Command | Spotted Combat Programmer 11987 | -1/Command | Met MAIN.C 11988 | -1/Command | Attached CPS modules to MAIN.C 11998 | -1/Command | Destroyed MAIN.C Shell 11999 | -1/Command | MAIN.C activated Command garrisons 11999 | -1/Command | 0b10 Conduit disabled 12017 | -1/Command | Destroyed MAIN.C 12031 | -1/Command | Discovered new exit (range 47) 12031 | -1/Command | Discovered new exit (range 92) 12031 | -1/Command | Extracted map data and part IDs from MAIN.C's data core 12033 | -1/Command | Found Centrium Heavy Armor Plating 12091 | -1/Command | All MAIN.C guards destroyed 12362 | -1/Command | Build established: Mutant 12854 | -1/Command | Found Exp. System Purifier 12856 | -1/Command | Found Zero-point Reactor 12859 | -1/Command | Found Vortex Chain Reactor 12864 | -1/Command | Found AEGIS Remote Shield 12989 | -1/Command | Attached CPS modules to Warlord KY-Z71 13282 | -1/Command | Warped through subspace to slip node 13282 | -1/Command | Discovered new exit (range 5) 13300 | -1/Command | Entered Access_0 13300 | -1/Access_0 | Destroyed Architect 13301 | -1/Access_0 | Architect triggered a singularity event 13301 | -1/Access_0 | Released all parts (15) 13305 | -1/Access_0 | Extracted unknown sensor trigger ID from Architect's data core 13306 | -1/Access_0 | Found Hpw. Transdimensional Reconstructor 13306 | -1/Access_0 | Warped through subspace to slip node 13306 | -1/Access_0 | Discovered new exit (range 8) 13311 | *** | Escaped singularity! Last Messages --------------- 13302_ A0_COM: 10. 13302_ Enhanced Grunt springs to life. 13303_ A0_COM: 9. 13304_ A0_COM: 8. 13304_ A8 shuts down. 13305_ A0_COM: 7. 13305_ Acquired data core, extracted unknown sensor trigger ID. 13305_ HV Slug penetrates Wall. 13305_ Penetrated by HV Slug. 13305_ Knocked back. 13306_ A0_COM: 6. 13306_ Acquired 35 matter. 13306_ Acquired Hpw. Transdimensional Reconstructor. 13306_ Warped through subspace, drawn to slip node. 13306_ EXIT=FOUND 13307_ A0_COM: 5. 13308_ A0_COM: 4. 13309_ A0_COM: 3. 13310_ A0_COM: 2. 13311_ A0_COM: 1. Map ----- +----------------------------------------------------+ | | | | | | | | | | | | | | | | | | | | | | | | | | | | | | | | | ?????????????????????????????????????????????????? | | ?????????????????????????????????????????????????? | | ?????????????????????????????????????????????????? | | ?????????????????????????????????????????????????? | | ?????????????????????????????????????????????????? | | ?????????????????????????????????????????????????? | | ????????????????????????###??????????????????????? | | ???????????????????????## ##?????????????????????? | | ???????????????????????# #?????????????????????? | | ???????????????????????# @ #?????????????????????? | | ??????????????????????## #?????????????????????? | | ??????????????????????# #?????????????????????? | | ??????????????????????# ##?????????????????????? | | ??????????????????????## #?????????????????????? | | ??????????????????????# #?????????????????????? | | ??????????????????????# ##?????????????????????? | | ??????????????????????# < #?????????????????????? | | ??????????????????????# ##?????????????????????? | | ??????????????????????## #??????????????????????? | | ???????????????????????####??????????????????????? | | ?????????????????????????????????????????????????? | | ?????????????????????????????????????????????????? | | ?????????????????????????????????????????????????? | | ?????????????????????????????????????????????????? | | ?????????????????????????????????????????????????? | | ?????????????????????????????????????????????????? | | ?????????????????????????????????????????????????? | | ?????????????????????????????????????????????????? | | ?????????????????????????????????????????????????? | | ?????????????????????????????????????????????????? | | ?????????????????????????????????????????????????? | | ?????????????????????????????????????????????????? | | ?????????????????????????????????????????????????? | | ?????????????????????????????????????????????????? | +----------------------------------------------------+ Best States ------------- Heat Dissipation 175 Energy Generation 65 Energy Capacity 1550 Matter Stores 300 Matter Capacity 300 Sight Range 22 Robot Scan Range 20 Terrain Scan Density 10 Jamming Range 16 Cloak Strength 6 Additional Mass Support 30 Armor Coverage 1200 Resistance: KI 40 Resistance: EM 20 Utility Shielding 66 Weapon Shielding 90 Evasion (%) 79 Melee Accuracy 8 Core Analysis 11 Armor Integrity Analysis 50 Recoil Reduction 4 Energy Filtering 30 Item Schematics ----------------- None Robot Schematics ------------------ None Fabricated ------------ Nothing Repaired ---------- Nothing Studied --------- None Alien Tech Used ----------------- Integrated Reactor Subatomic Replicator Dimensional Node Initializer High-powered Transdimensional Reconstructor Sigix Broadsword Supercharged TR Transdimensional Reconstructor Achievements -------------- None Challenges ------------ None Game ------ Seed VortexAccelerationDirector Manual? 0 Play Time 04:47:09 Cumulative 1787.9 hours Start 2026.09.07 @ 09:42:19 End 2026.09.07 @ 15:12:23 Sessions 1 Manual Loads 0 Difficulty Rogue Special Mode None Game No. 543 Rogue 535 Adventurer 4 Explorer 4 Win Type 6 Total 73 Types 31/10/6/4/2/5/8/2/3/2 Lore% 97 Gallery% 96 Achievement% 92 Wizard Run 0 Options --------- Layout 0 ASCII 0 Keyboard 0 Movement Numpad Keybinds 0 Fullscreen 2 Font 18/SmallcapsGlow Map View 76x50 Zoom Use 0% Tactical HUD 1 Map Filters NONE Filters NONE Steam 1 RUN: 4f396c88-f5f1-435c-a850-1bbfa8560669